[Event "New York Spring IM-C 2022"]
[Site "New York"]
[Date "2022.04.17"]
[Round "6.1"]
[White "Lee, Justin"]
[Black "Ngo, Bach"]
[Result "1/2-1/2"]
[ECO "E25"]
[WhiteElo "2104"]
[BlackElo "2306"]
[Annotator "TA"]
[PlyCount "145"]
[EventDate "2022.04.14"]
[EventType "tourn"]
[EventCountry "USA"]
[SourceTitle "playchess.com"]
[Source "ChessBase"]
[SourceQuality "1"]
[TimeControl "5400+30"]

{[%evp 14,145,0,-12,-33,-23,-28,-10,116,97,107,104,140,94,120,76,66,49,78,23,24,19,33,13,17,-42,-43,-108,0,-3,-35,-181,-15,-8,-22,-45,-29,-40,-26,-108,-118,-108,-112,-343,-360,-373,-373,-374,-117,-114,-120,-106,-90,-99,-85,-121,-110,-144,-99,-96,-93,-121,-108,-136,-124,-133,-135,-137,-129,-147,-154,-563,-194,-424,-423,-569,-243,-254,-255,-259,-243,-302,-302,-1210,-1198,-909,-883,-29954,-29955,-29955,-29957,-29957,-29959,-29958,-29951,-29948,-29950,-29951,-29953,-29956,-29957,-29956,-29959,-29959,-29960,-29960,-29961,-29962,-29964,-29962,-29965,-29967,-29968,-29968,-29966,-29967,-29969,-29971,-29972,-29972,-29972,-29974,-29974,-29974,-29975,-29975,-29975,-29976,-29977,-29976,-29976,-29976,0,0]} 1. d4 {[%emt 0:00:01]} Nf6 {[%emt 0:04:24]} 2. c4 {[%emt 0:00:06]} e6 {[%emt 0:00:04]} 3. Nc3 {[%emt 0:00:04]} Bb4 {[%emt 0:00:10]} 4. f3 {[%emt 0:00:05]} d5 {[%emt 0:00:08]} 5. a3 {[%emt 0:00:06]} Bxc3+ {[%emt 0:00:07]} 6. bxc3 {[%emt 0:00:03]} c5 {[%emt 0:00:17]} 7. cxd5 {[%emt 0:00:10]} Nxd5 {[%emt 0:00:07]} 8. Qd2 {[%emt 0:00:18]} O-O {[%emt 0:03:19] has lost popularity (8...Qa5). E25: Nimzo-Indian: Sämisch: 5...c5 6 f3 d5 7 cxd5.} 9. e4 {[%emt 0:00:25]} Nb6 {[%emt 0:00:25]} 10. a4 {[%emt 0:06:59][%cal Ba3a4,Ba4a5][%mdl 32] [#]} f5 $146 {[%emt 0:12:48]} (10... Bd7 $11) ({Predecessor:} 10... Bd7 11. Bd3 Bxa4 12. dxc5 N6d7 13. Rxa4 Nxc5 14. Rd4 {1-0 (14) Margana,A (2236)-Wosch,A (2359) LSS email 2017}) 11. a5 $16 {[%emt 0:12:45]} (11. dxc5 N6d7 $14) 11... N6d7 {[%emt 0:00:44]} 12. exf5 {[%emt 0:01:44]} exf5 {[%emt 0:03:37]} 13. Bc4+ {[%emt 0:00:33]} ({White should play} 13. Nh3) 13... Kh8 {[%emt 0:00:10]} 14. Ne2 {[%emt 0:00:53] Active counter play!} Nc6 {[%emt 0:01:20]} 15. Qa2 {[%emt 0:08:24]} Qf6 {[%emt 0:07:04][%cal Rc5d4]} 16. Be3 {[%emt 0:05:54] A strong pair of Bishops.} (16. O-O $16) 16... cxd4 $11 {[%emt 0:07:09]} 17. cxd4 {[%emt 0:00:14]} b6 {[%emt 0:00:16]} 18. a6 {[%emt 0:03:09]} Re8 {[%emt 0:01:10][%csl LRd4,LRe3]} 19. Qd2 {[%emt 0:02:21]} (19. Kf2 $11) 19... Na5 $15 {[%emt 0:04:42]} 20. Bd5 {[%emt 0:26:15]} (20. Bb5 $1 $15) 20... Rb8 {[%emt 0:01:50]} ({Better is} 20... Bxa6 $17 {White must now prevent ...Rac8.} 21. Bxa8 Nb3 $1) 21. Kf2 {[%emt 0:04:08]} Bxa6 {[%emt 0:00:34]} 22. Ng3 {[%emt 0:03:17] [#]} (22. Rhe1 $1 $15) 22... Rbc8 $2 {[%emt 0:08:10]} (22... Qd6 23. Ba2 $11 (23. Bf7 $2 Rxe3 24. Qxe3 f4 $19)) ({Black should try} 22... Rxe3 $1 $19 {[%mdl 512]} 23. Qxe3 f4) 23. Rhc1 $11 {[%emt 0:01:55]} Qf8 {[%emt 0:03:38]} 24. Bf4 {[%emt 0:02:10]} Nf6 $1 {[%emt 0:02:22]} 25. Ba2 {[%emt 0:00:55]} Bc4 {[%emt 0:05:49] ...Nd5 is the strong threat.} 26. Bxc4 {[%emt 0:05:47]} (26. Kg1 $11 {keeps the balance.}) 26... Nxc4 $17 {[%emt 0:00:17]} 27. Qa2 {[%emt 0:01:17]} b5 {[%emt 0:03:06]} 28. Qxa7 $2 {[%emt 0:01:39]} (28. Qa6 $17 {was called for.} Nd5 29. Qxb5 Nxf4 30. Rxc4) 28... Nd5 $1 $19 {[%emt 0:00:31]} 29. Be5 {[%emt 0:00:35]} Nb4 {[%emt 0:01:53] Threatens to win with ...Nd3+.} (29... Nxe5 30. dxe5 Nc3 31. Ne2 Nxe2 32. Rxc8 Rxc8 33. Kxe2 $15) 30. Kg1 {[%emt 0:01:48]} Nd3 $2 {[%emt 0:01:03]} (30... Nxe5 31. dxe5 Nc2 32. Rab1 Rxe5 33. Nh5 $17) (30... Re7 $19 {is more deadly.} 31. Bd6 Rxa7 32. Bxf8 Rxa1 33. Rxa1 Rxf8) 31. Rd1 $17 {[%emt 0:01:03]} Ndxe5 {[%emt 0:01:23]} 32. dxe5 {[%emt 0:00:06]} Nxe5 {[%emt 0:01:41][%cal Bc4e5,Be5c4,Bc4e3][%mdl 32]} (32... Rxe5 $6 33. Rd7 $11) 33. Rab1 {[%emt 0:02:49]} Rc5 {[%emt 0:02:49]} 34. Qa3 {[%emt 0:03:17]} Nc4 {[%emt 0:00:21]} 35. Qd3 {[%emt 0:00:44]} Rce5 {[%emt 0:00:28]} 36. Qd4 {[%emt 0:00:45]} Qf6 {[%emt 0:00:27][%cal Oe5e1] Strongly threatening ...Re1+!} 37. Kh1 {[%emt 0:00:44]} Ne3 {[%emt 0:02:35]} (37... Re1+ $2 38. Rxe1 Ra8 39. Qxf6 gxf6 40. Rxb5 $18) 38. Re1 {[%emt 0:00:43]} f4 {[%emt 0:01:34]} 39. Ne4 {[%emt 0:00:57]} Qg6 {[%emt 0:00:28][%csl Ge3][%cal Rg6g2]} 40. Rb2 {[%emt 0:00:36]} Rd5 {[%emt 0:01:19] Prevents Qd7.} 41. Qb4 {[%emt 0:01:35]} h6 {[%emt 0:00:49]} 42. Nc3 $2 {[%emt 0:00:47] [#]} (42. Rg1 $17) 42... Rg5 $2 {[%emt 0:01:06]} (42... Nc2 $1 {[%cal Re8e1][%mdl 512]} 43. Rxe8+ Qxe8) 43. Qxf4 $2 {[%emt 0:02:03] [#]} (43. Nd1 {was forced.}) 43... Rxg2 $1 $19 {[%emt 0:02:27]} 44. Rxb5 {[%emt 0:01:02] [#]} (44. Rbb1 b4) 44... Rf2 $1 $40 {[%emt 0:05:59][%mdl 128] Black attacks with force.} 45. Qg3 {[%emt 0:00:23]} Qxg3 {[%emt 0:00:08]} 46. hxg3 {[%emt 0:00:03]} Rxf3 {[%emt 0:00:10][%cal Bf2f3,Bf3g3,Bg3g2,Bg2a2][%mdl 32]} 47. Nd5 {[%emt 0:00:45]} Rxg3 {[%emt 0:00:57]} 48. Rb3 $2 {[%emt 0:00:22] [#]} (48. Kh2 Rf3 49. Nxe3 Rexe3 50. Re5 Rh3+ 51. Kg2 Reg3+ 52. Kf1) 48... Re5 $1 {[%emt 0:00:09][%cal Re5h5]} 49. Nf4 {[%emt 0:01:10] Against Rh5+} Re4 {[%emt 0:00:29]} 50. Ng2 {[%emt 0:01:05]} Rxg2 {[%emt 0:00:15][%cal Re4h4]} 51. Rbxe3 {[%emt 0:00:29]} Rxe3 {[%emt 0:00:10]} (51... Reg4 $2 52. Re4 $19) 52. Rxe3 {[%emt 0:00:02] KR-KR} Ra2 {[%emt 0:00:10]} 53. Rb3 {[%emt 0:00:05]} h5 {[%emt 0:00:09]} 54. Rb5 {[%emt 0:00:06]} g6 {[%emt 0:00:10]} 55. Rb7 {[%emt 0:00:04]} Kg8 {[%emt 0:00:12]} (55... g5 56. Rb5 $11) 56. Rc7 {[%emt 0:00:07]} Rf2 {[%emt 0:00:12]} ({Not} 56... g5 57. Rc5 $11) 57. Ra7 {[%emt 0:00:06]} Rf7 {[%emt 0:00:08]} ({Stronger than} 57... g5 58. Ra5 $11) 58. Ra6 {[%emt 0:00:04]} Kg7 {[%emt 0:00:05]} ({Inferior is} 58... g5 59. Rg6+ Rg7 60. Rh6 $19) 59. Kg2 {[%emt 0:00:04]} Rf6 {[%emt 0:00:04]} 60. Ra5 {[%emt 0:00:05]} Kh6 {[%emt 0:00:06]} 61. Kg3 {[%emt 0:00:09]} g5 {[%emt 0:00:19]} 62. Rb5 {[%emt 0:00:15]} h4+ {[%emt 0:00:16][%cal Bh5h4,Bh4h3][%mdl 32]} 63. Kg4 {[%emt 0:00:11]} Rf4+ {[%emt 0:00:05]} 64. Kh3 {[%emt 0:00:04]} Kh5 {[%emt 0:00:15]} 65. Ra5 {[%emt 0:00:04]} Rf3+ {[%emt 0:00:07]} 66. Kg2 {[%emt 0:00:03]} Rb3 {[%emt 0:00:18]} 67. Rc5 {[%emt 0:00:07]} h3+ {[%emt 0:00:10]} 68. Kh2 {[%emt 0:00:04]} Kh4 {[%emt 0:00:04]} 69. Rc4+ {[%emt 0:00:12]} g4 {[%emt 0:00:05]} 70. Ra4 {[%emt 0:00:02]} Rb2+ {[%emt 0:00:08]} 71. Kh1 {[%emt 0:00:04]} Rf2 {[%emt 0:00:12]} 72. Kg1 {[%emt 0:00:06]} Kg3 $2 {[%emt 0:00:16]} (72... Re2 {mates} 73. Ra8 Kg3 74. Ra3+ Kf4 75. Ra8 Kg3 76. Ra3+ Kf4 77. Ra8 Kf3 78. Rf8+ Kg3 79. Rf1 Re3 80. Rd1 Kf4 81. Rf1+ Kg5 82. Rc1 g3 83. Kf1 Kf4 84. Rc8 g2+ 85. Kf2 Rf3+ 86. Ke2 h2 87. Rf8+ Ke5 88. Re8+ Kd6 89. Rd8+ Ke7 90. Rh8 {[#]} h1=Q $1 {[%mdl 512]} 91. Kxf3 Qf1+ 92. Ke4 Qb1+ 93. Kf4 g1=Q 94. Re8+ Kxe8 95. Ke5 Qg4 96. Kd6 Qd4+ 97. Ke6 Qg6#) 73. Rxg4+ $1 {[%emt 0:00:09] Weighted Error Value: White=0.65/Black=0.44} 1/2-1/2

[Event "New York Spring IM-C 2022"]
[Site "New York"]
[Date "2022.04.17"]
[Round "6.2"]
[White "Singh, Hersh"]
[Black "Umayan, Vincent"]
[Result "1-0"]
[ECO "E02"]
[WhiteElo "2084"]
[BlackElo "2043"]
[Annotator "RC"]
[PlyCount "103"]
[EventDate "2022.04.14"]
[EventType "tourn"]
[EventCountry "USA"]
[SourceTitle "playchess.com"]
[Source "ChessBase"]
[SourceQuality "1"]
[TimeControl "5400+30"]

1. Nf3 {[%emt 0:00:02]} Nf6 {[%emt 0:00:10]} 2. g3 {[%emt 0:00:04]} e6 {[%emt 0:00:41]} 3. Bg2 {[%emt 0:00:06]} d5 {[%emt 0:01:20]} 4. O-O {[%emt 0:00:08]} Be7 {[%emt 0:00:19]} 5. d4 {[%emt 0:00:08]} O-O {[%emt 0:00:23]} 6. c4 {[%emt 0:00:03]} dxc4 {[%emt 0:00:57]} 7. Qa4 {[%emt 0:00:09]} Bd7 {[%emt 0:04:41]} 8. Qxc4 {[%emt 0:00:05]} Bc6 {[%emt 0:00:06]} 9. Bf4 {[%emt 0:02:31]} Nbd7 {[%emt 0:04:18]} 10. Rd1 {[%emt 0:01:50]} Bd6 {[%emt 0:03:11]} 11. Qc1 {[%emt 0:01:22]} Bxf4 {[%emt 0:16:39]} 12. Qxf4 {[%emt 0:06:30]} Bxf3 {[%emt 0:02:17]} 13. Qxf3 {[%emt 0:04:33]} c6 {[%emt 0:00:17]} 14. Nd2 {[%emt 0:05:47]} Qe7 {[%emt 0:10:04]} 15. Qb3 {[%emt 0:01:19]} Rab8 {[%emt 0:02:21]} 16. Nc4 {[%emt 0:04:57]} Rfd8 {[%emt 0:10:51]} 17. a4 {[%emt 0:04:33]} g6 {[%emt 0:03:01]} 18. a5 {[%emt 0:00:44]} a6 {[%emt 0:03:42]} 19. Bf3 {[%emt 0:06:20]} Kg7 {[%emt 0:04:32]} 20. Kg2 {[%emt 0:03:08]} Ne8 {[%emt 0:06:01]} 21. h4 {[%emt 0:03:08]} h5 {[%emt 0:00:48]} 22. Rac1 {[%emt 0:07:08]} Kg8 {[%emt 0:03:43]} 23. Qe3 {[%emt 0:03:11]} Nd6 {[%emt 0:02:52]} 24. Qa3 {[%emt 0:10:24]} Nf6 {[%emt 0:06:43]} 25. Ne5 {[%emt 0:03:19]} Qf8 {[%emt 0:04:28]} 26. Qb3 {[%emt 0:02:46]} Nb5 {[%emt 0:00:29]} 27. e3 {[%emt 0:00:35]} Rbc8 {[%emt 0:00:45]} 28. Be2 {[%emt 0:01:26]} Nd6 {[%emt 0:02:26]} 29. Rc2 {[%emt 0:02:42]} Kg7 {[%emt 0:00:41]} 30. Rdc1 {[%emt 0:00:05]} Qe7 {[%emt 0:00:43]} 31. Bf3 {[%emt 0:02:11]} Nb5 {[%emt 0:00:26]} 32. Nd3 {[%emt 0:00:45]} Rb8 {[%emt 0:02:37]} 33. Qc4 {[%emt 0:00:29]} Nd7 {[%emt 0:00:29]} 34. Nc5 {[%emt 0:06:51]} e5 {[%emt 0:01:03]} 35. Nxd7 {[%emt 0:03:46]} Rxd7 {[%emt 0:00:09]} 36. d5 {[%emt 0:00:01]} cxd5 {[%emt 0:01:16]} 37. Bxd5 {[%emt 0:00:03]} Rbd8 {[%emt 0:00:27]} 38. Bf3 {[%emt 0:00:27]} Qf6 {[%emt 0:00:43]} 39. Qb4 {[%emt 0:00:59]} Qe6 {[%emt 0:00:49]} 40. Rc5 {[%emt 0:00:50]} Qf6 {[%emt 0:01:04]} 41. R1c2 {[%emt 0:00:53]} Qe6 {[%emt 0:00:41]} 42. Qe4 {[%emt 0:01:41]} Re7 {[%emt 0:00:16]} 43. Be2 {[%emt 0:01:26]} Nd6 {[%emt 0:00:18]} 44. Qb4 {[%emt 0:00:09]} Qf5 {[%emt 0:00:32]} 45. Bf3 {[%emt 0:00:55]} Qf6 {[%emt 0:00:53]} 46. Rd2 {[%emt 0:01:01]} Rde8 {[%emt 0:01:15]} 47. Rcd5 {[%emt 0:01:55]} e4 {[%emt 0:00:21]} 48. Bxh5 {[%emt 0:01:35]} Nf5 {[%emt 0:00:40]} 49. Bg4 {[%emt 0:00:47]} Nh6 {[%emt 0:00:04]} 50. Rd6 {[%emt 0:01:31]} Nxg4 {[%emt 0:01:11]} 51. Rxf6 {[%emt 0:00:03]} Nxf6 {[%emt 0:00:06]} 52. Rd6 {[%emt 0:00:14]} 1-0

[Event "New York Spring IM-C 2022"]
[Site "New York"]
[Date "2022.04.17"]
[Round "6.3"]
[White "Berczes, David"]
[Black "Jakovljevic, Vlado"]
[Result "1-0"]
[ECO "D46"]
[WhiteElo "2452"]
[BlackElo "2352"]
[Annotator "TA"]
[PlyCount "73"]
[EventDate "2022.04.14"]
[EventType "tourn"]
[EventCountry "USA"]
[SourceTitle "playchess.com"]
[Source "ChessBase"]
[SourceQuality "1"]
[TimeControl "5400+30"]

{[%evp 20,73,37,11,23,18,75,51,139,110,111,89,95,100,114,45,48,48,51,45,56,23,20,40,33,33,187,181,123,0,0,-20,-14,-12,-10,-10,-9,-11,-16,-145,-133,-150,-150,-167,-71,-163,-170,-162,-106,-114,-103,-103,831,806,748,714]} 1. d4 {[%emt 0:14:34]} d5 {[%emt 0:01:17]} 2. Nf3 {[%emt 0:00:27]} Nf6 {[%emt 0:00:19]} 3. c4 {[%emt 0:00:28]} c6 {[%emt 0:00:33]} 4. e3 {[%emt 0:01:15][%cal Be2e3,Be3e4][%mdl 32]} e6 {[%emt 0:00:51]} 5. Bd3 {[%emt 0:01:29]} Nbd7 {[%emt 0:03:56]} 6. O-O {[%emt 0:02:08]} Bd6 {[%emt 0:00:43]} 7. Nc3 {[%emt 0:00:49]} O-O {[%emt 0:00:35]} 8. e4 {[%emt 0:00:52]} dxc4 {[%emt 0:00:35]} 9. Bxc4 {[%emt 0:00:05]} e5 {[%emt 0:00:04]} 10. Be3 {[%emt 0:00:51]} Qe7 {[%emt 0:02:14]} 11. h3 {[%emt 0:27:31]} b5 {[%emt 0:04:39] D46: Semi-Slav: 5 e3 Nbd7 6 Bd3, Black avoids the Meran.} 12. Bb3 {[%emt 0:16:17]} a6 {[%emt 0:05:40] [#]} (12... Bb7 $11 {keeps the balance.}) 13. Rc1 $146 {[%emt 0:12:16]} ({Predecessor:} 13. a3 c5 14. Nd5 Nxd5 15. Bxd5 Ra7 16. Bg5 Qe8 17. dxc5 Bxc5 18. b4 Be7 19. Be3 {1-0 (58) Eljanov,P (2717)-Haznedaroglu,K (2499) Novi Sad 2009}) 13... Rb8 {[%emt 0:12:46]} (13... Bb7 $14) 14. Bg5 {[%emt 0:10:40]} h6 {[%emt 0:09:53] [#]} 15. Nh4 $1 {[%emt 0:01:29][%cal Og5h6] And now Bxh6! would win.} Qd8 {[%emt 0:10:06] [#]} (15... hxg5 16. Nf5) 16. Nf5 $1 {[%emt 0:00:29]} Bc7 {[%emt 0:01:12]} (16... hxg5 17. Nxd6) 17. Bxf6 {[%emt 0:04:21] &Bianco is much more active. The black rooks are badly placed.} (17. Bh4 $1 $16) 17... Nxf6 $14 {[%emt 0:02:03]} 18. dxe5 {[%emt 0:00:24]} Bxf5 {[%emt 0:11:23]} (18... Bxe5 $2 19. Qxd8 Rxd8 20. Ne7+ Kf8 21. Nxc6 $18) 19. exf6 {[%emt 0:00:46]} Bg6 {[%emt 0:00:44]} 20. Qxd8 {[%emt 0:02:28]} Rfxd8 {[%emt 0:01:47]} 21. fxg7 {[%emt 0:00:43]} Be5 {[%emt 0:03:15]} 22. f4 {[%emt 0:00:36]} Bxc3 {[%emt 0:01:15]} (22... Bd4+ $14 23. Kh2 Kxg7) 23. Rxc3 $18 {[%emt 0:00:04] Black must now prevent f5.} (23. bxc3 Bxe4 24. Rfe1 Bd5 $11) 23... Bxe4 {[%emt 0:00:07]} 24. Rg3 {[%emt 0:00:57]} ({White should try} 24. f5 $1 $16) 24... c5 $11 {[%emt 0:07:13]} 25. Re1 {[%emt 0:00:03]} Rd4 {[%emt 0:19:50]} 26. Bd1 {[%emt 0:00:56]} Rbd8 {[%emt 0:00:00]} 27. Bh5 {[%emt 0:00:10]} c4 {[%emt 0:00:00]} 28. f5 {[%emt 0:00:10]} Bxf5 {[%emt 0:00:00] With the idea ...Be6.} 29. Re7 {[%emt 0:00:04]} (29. Rf1 $11 R4d5 30. Rgf3) 29... Be6 $17 {[%emt 0:00:00] Strongly threatening ...Rd3.} 30. Ra7 {[%emt 0:01:32]} Rd3 $1 {[%emt 0:00:00]} 31. Bf3 {[%emt 0:00:23] [#]} Rd2 {[%emt 0:00:00]} (31... b4 $1 $19 {has better winning chances. Hoping for ...c3.} 32. Kh2 (32. Rxa6 $2 c3 $19) 32... Rc8) 32. Rxa6 {[%emt 0:00:21]} (32. Bg4 $17 {was worth a try.}) 32... Rxb2 $19 {[%emt 0:00:00] Threatens to win with ...c3.} 33. Be4 {[%emt 0:00:50][%cal Oa6d6]} b4 {[%emt 0:00:00]} ({Better is} 33... Re2 $19 34. Rd6 Rc8) 34. Rd6 $17 {[%emt 0:00:30][%cal Rd6d8]} Re8 {[%emt 0:00:00]} (34... Rxd6 $2 {[#]} 35. Bh7+ $1 {[%mdl 512]} Kxh7 36. g8=Q#) (34... Rxg2+ 35. Kxg2 Re8 36. Bc6 $18) 35. Bc6 {[%emt 0:00:13]} Rc8 {[%emt 0:00:00][%mdl 8192]} (35... Rb8 $17 36. Bd5 c3 37. Rxe6 c2) 36. Bd7 $18 {[%emt 0:00:43]} ({Worse is} 36. Bb7 Rb8 37. Bd5 c3 38. Rxe6 c2 $17) 36... Rb8 {[%emt 0:00:00]} 37. Rxe6 {[%emt 0:00:21] Both players deserved the win here.  Weighted Error Value: White=0.28 (precise) /Black=0.27 (precise)} 1-0

[Event "New York Spring IM-C 2022"]
[Site "New York"]
[Date "2022.04.17"]
[Round "6.4"]
[White "Rozman, Levy"]
[Black "Antova, Gabriela"]
[Result "1/2-1/2"]
[ECO "A29"]
[WhiteElo "2334"]
[BlackElo "2304"]
[Annotator "TA"]
[PlyCount "115"]
[EventDate "2022.04.14"]
[EventType "tourn"]
[EventCountry "USA"]
[SourceTitle "playchess.com"]
[Source "ChessBase"]
[SourceQuality "1"]
[TimeControl "5400+30"]

{[%evp 18,115,2,0,7,0,12,8,14,0,0,0,0,0,0,0,0,-77,-45,-120,0,0,0,0,0,0,0,0,0,0,0,0,0,0,0,0,0,0,0,0,0,0,0,0,0,0,0,0,0,0,0,0,0,0,0,0,0,0,0,0,0,0,0,0,0,-25,-32,-32,0,0,0,0,0,0,0,0,0,0,0,0,0,0,0,0,0,0,0,0,0,0,0,0,0,0,0,0,0,0,0,0]} 1. c4 {[%emt 0:00:49]} e5 {[%emt 0:00:12]} 2. g3 {[%emt 0:00:22]} Nf6 {[%emt 0:00:24]} 3. Bg2 {[%emt 0:00:11]} d5 {[%emt 0:00:22]} 4. cxd5 {[%emt 0:00:08]} Nxd5 {[%emt 0:00:07]} 5. Nc3 {[%emt 0:00:41]} Nb6 {[%emt 0:00:19]} 6. Nf3 {[%emt 0:00:19]} Nc6 {[%emt 0:00:11]} 7. O-O {[%emt 0:00:45]} Be7 {[%emt 0:00:25]} 8. a3 {[%emt 0:01:39]} O-O {[%emt 0:01:04]} 9. b4 {[%emt 0:00:58]} Be6 {[%emt 0:00:43]} 10. Rb1 {[%emt 0:01:28]} a6 {[%emt 0:01:29] A29: English Opening: Four Knights Variation with 4 g3.} 11. Ne4 {[%emt 0:03:09]} Ba2 {[%emt 0:16:20] [#]} 12. Ra1 $146 {[%emt 0:05:03]} ({Predecessor:} 12. Rb2 Bd5 13. d3 a5 14. b5 Nd4 15. Nxd4 exd4 16. Rb1 a4 17. Bb2 Qd7 18. Qc1 {½-½ (48) Klein,M-Schaefer,U DESC email 2004}) 12... Bd5 {[%emt 0:00:35]} 13. d3 {[%emt 0:10:51]} Bxe4 {[%emt 0:11:23]} 14. dxe4 {[%emt 0:00:07]} Qxd1 {[%emt 0:00:09]} 15. Rxd1 {[%emt 0:00:05]} Rfd8 {[%emt 1:04:17]} 16. Rd3 {[%emt 0:01:41]} Nc4 {[%emt 0:00:00]} 17. Ra2 {[%emt 0:13:59]} (17. Bf1 $11 {keeps the balance.}) 17... b5 {[%emt 0:00:00][%cal Oe7b4]} (17... Bxb4 $5 18. axb4 Nxb4 19. Rxd8+ Rxd8 $11) 18. Bh3 {[%emt 0:02:37] [#]} (18. Nd2 $15) 18... a5 {[%emt 0:00:00]} ({Black should try} 18... Bxb4 $1 $17 {[%mdl 512]} 19. Bd7 (19. axb4 Nxb4 20. Rxd8+ Rxd8 $17) 19... Nd4 20. Nxd4 Rxd7) 19. Bd7 $11 {[%emt 0:04:47]} Na7 {[%emt 0:00:00] Pair of Knights!} 20. Rc2 {[%emt 0:08:36]} axb4 {[%emt 0:00:00]} 21. axb4 {[%emt 0:00:07]} Bxb4 {[%emt 0:00:00]} (21... Kf8 {keeps more tension.} 22. Bxb5 Nxb5 23. Rxc4 Rxd3 24. exd3 f6) 22. Bxb5 {[%emt 0:00:58]} Nxb5 {[%emt 0:00:00]} 23. Rxc4 {[%emt 0:01:20]} Rxd3 {[%emt 0:00:00]} 24. exd3 {[%emt 0:00:06]} Bd6 {[%emt 0:00:00]} 25. h4 {[%emt 0:09:21]} h5 {[%emt 0:00:00]} 26. Kg2 {[%emt 0:00:43][%cal Of3e5]} f6 {[%emt 0:00:00]} 27. Be3 {[%emt 0:03:33]} Kf7 {[%emt 0:00:00]} 28. d4 {[%emt 0:00:45]} exd4 {[%emt 0:00:00]} 29. Bxd4 {[%emt 0:00:11]} Nxd4 {[%emt 0:00:00]} 30. Nxd4 {[%emt 0:00:25][%mdl 4096] Endgame KRB-KRN} Ra5 {[%emt 0:00:14]} 31. Nf5 {[%emt 0:01:47]} Bc5 {[%emt 0:02:18]} 32. Kf3 {[%emt 0:01:13]} Bb6 {[%emt 0:03:05]} 33. Ne3 {[%emt 0:03:37]} Ra2 {[%emt 0:00:41]} 34. g4 {[%emt 0:00:08]} hxg4+ {[%emt 0:02:05]} 35. Nxg4 {[%emt 0:00:08]} Rd2 {[%emt 0:01:02]} 36. Rc3 {[%emt 0:03:38]} Ke6 {[%emt 0:00:22]} 37. h5 {[%emt 0:01:01]} f5 {[%emt 0:00:34]} 38. Rc6+ {[%emt 0:07:33]} Rd6 {[%emt 0:00:17]} (38... Kd7 $5 39. Ne5+ Kc8 $11) 39. exf5+ {[%emt 0:00:16]} Kxf5 {[%emt 0:00:03]} 40. Rc1 {[%emt 0:00:29]} Kg5 {[%emt 0:00:52]} 41. Rh1 {[%emt 0:01:06]} Rd4 {[%emt 0:00:50]} 42. Ne3 {[%emt 0:00:59]} Rh4 {[%emt 0:00:32]} 43. Rg1+ {[%emt 0:00:40] The position is equal.} Kf6 {[%emt 0:00:04]} 44. Rg6+ {[%emt 0:04:43]} Kf7 {[%emt 0:00:10]} 45. Rg5 {[%emt 0:00:14]} Bxe3 {[%emt 0:01:06]} 46. fxe3 {[%emt 0:00:34] KR-KR} Rc4 {[%emt 0:00:14]} 47. e4 {[%emt 0:00:16]} Kf6 {[%emt 0:00:52]} 48. Rg6+ {[%emt 0:00:31]} Kf7 {[%emt 0:00:01]} 49. Kf4 {[%emt 0:00:44]} Rc1 {[%emt 0:00:18]} 50. Kf5 {[%emt 0:01:52]} Rf1+ {[%emt 0:01:15]} 51. Ke5 {[%emt 0:00:33]} Ra1 {[%emt 0:00:26]} 52. Rc6 {[%emt 0:00:28]} Ra5+ {[%emt 0:00:11]} 53. Kd4 {[%emt 0:00:09]} Rxh5 {[%emt 0:00:17]} 54. Rxc7+ {[%emt 0:00:07]} Kf6 {[%emt 0:00:17]} 55. Rc6+ {[%emt 0:00:36]} Kf7 {[%emt 0:00:13]} 56. e5 {[%emt 0:00:19]} Rh1 {[%emt 0:00:32]} 57. Rc7+ {[%emt 0:00:06]} Ke6 {[%emt 0:00:14]} 58. Rxg7 {[%emt 0:00:06] Weighted Error Value: White=0.06 (flawless) /Black=0.05 (flawless)} 1/2-1/2